[Event "Satka Autumn 2019"]
[Site "Satka"]
[Date "2019.09.24"]
[Round "6.10"]
[White "Petrukhina, Olga"]
[Black "Aleshina, Arina"]
[Result "1-0"]
[ECO "A88"]
[WhiteElo "2192"]
[BlackElo "1365"]
[Annotator "NA"]
[PlyCount "55"]
[EventDate "2019.09.19"]
[EventType "swiss"]
[EventCountry "RUS"]
[SourceTitle "playchess.com"]
[Source "ChessBase"]
[SourceQuality "1"]
[TimeControl "5400+30"]

1. Nf3 {[%emt 0:00:00]} f5 {[%emt 0:00:00]} 2. d4 {[%emt 0:00:00]} Nf6 {[%emt 0:00:00]} 3. g3 {[%emt 0:00:00]} g6 {[%emt 0:00:00]} 4. Bg2 {[%emt 0:00:00]} Bg7 {[%emt 0:00:00]} 5. O-O {[%emt 0:00:00]} O-O {[%emt 0:00:14]} 6. c4 {[%emt 0:00:00]} d6 {[%emt 0:00:25]} 7. Nc3 {[%emt 0:00:00]} c6 {[%emt 0:00:20]} 8. Rb1 {[%emt 0:00:00]} Qc7 {[%emt 0:02:08]} 9. d5 {[%emt 0:04:58]} e5 {[%emt 0:07:45]} 10. dxe6 {[%emt 0:01:00]} Bxe6 {[%emt 0:00:05]} 11. Bf4 {[%emt 0:05:49]} Rd8 {[%emt 0:01:38]} 12. c5 {[%emt 0:00:30]} Ne8 {[%emt 0:01:42]} 13. Ng5 {[%emt 0:08:17]} Qe7 {[%emt 0:00:55]} 14. Nxe6 {[%emt 0:00:39]} Qxe6 {[%emt 0:00:06]} 15. e4 {[%emt 0:03:15]} Na6 {[%emt 0:12:33]} 16. exf5 {[%emt 0:02:06]} gxf5 {[%emt 0:01:04]} 17. Re1 {[%emt 0:02:07]} Qf6 {[%emt 0:07:08]} 18. cxd6 {[%emt 0:07:55]} Nxd6 {[%emt 0:00:53]} 19. Qb3+ {[%emt 0:11:44]} Qf7 {[%emt 0:00:09]} 20. Nd5 {[%emt 0:07:16]} Nc5 {[%emt 0:04:25]} 21. Ne7+ {[%emt 0:11:13]} Kh8 {[%emt 0:01:26]} 22. Qxf7 {[%emt 0:03:36]} Nxf7 {[%emt 0:00:04]} 23. Nxf5 {[%emt 0:00:53]} Nd3 {[%emt 0:01:13]} 24. Re7 {[%emt 0:02:10]} Kg8 {[%emt 0:01:17]} 25. Nxg7 {[%emt 0:03:44]} Kxg7 {[%emt 0:00:05]} 26. Rxb7 {[%emt 0:01:36]} Nxf4 {[%emt 0:00:12]} 27. gxf4 {[%emt 0:00:02]} Rd6 {[%emt 0:01:10]} 28. Rc1 {[%emt 0:03:16]} 1-0

[Event "Satka Autumn 2019"]
[Site "Satka"]
[Date "2019.09.24"]
[Round "6.11"]
[White "Svetlova, Ksenia"]
[Black "Mukhina, Jana"]
[Result "0-1"]
[ECO "C72"]
[WhiteElo "1875"]
[BlackElo "2083"]
[Annotator "NA"]
[PlyCount "82"]
[EventDate "2019.09.19"]
[EventType "swiss"]
[EventCountry "RUS"]
[SourceTitle "playchess.com"]
[Source "ChessBase"]
[SourceQuality "1"]
[TimeControl "5400+30"]

1. e4 {[%emt 0:00:00]} e5 {[%emt 0:00:00]} 2. Nf3 {[%emt 0:00:00]} Nc6 {[%emt 0:00:00]} 3. Bb5 {[%emt 0:00:05]} a6 {[%emt 0:00:00]} 4. Ba4 {[%emt 0:00:04]} d6 {[%emt 0:00:04]} 5. O-O {[%emt 0:00:07]} Bd7 {[%emt 0:00:03]} 6. c3 {[%emt 0:00:09]} g6 {[%emt 0:00:12]} 7. Re1 {[%emt 0:00:18]} Bg7 {[%emt 0:00:07]} 8. d4 {[%emt 0:00:08]} Nf6 {[%emt 0:00:48]} 9. Nbd2 {[%emt 0:00:10]} Qe7 {[%emt 0:00:21]} 10. Bc2 {[%emt 0:05:56]} O-O {[%emt 0:00:54]} 11. Nf1 {[%emt 0:00:38]} Bg4 {[%emt 0:07:57]} 12. d5 {[%emt 0:00:13]} Nd8 {[%emt 0:02:01]} 13. h3 {[%emt 0:00:34]} Bd7 {[%emt 0:00:57]} 14. Ng3 {[%emt 0:01:27]} c5 {[%emt 0:12:22]} 15. a4 {[%emt 0:02:46]} b6 {[%emt 0:01:16]} 16. a5 {[%emt 0:04:40]} b5 {[%emt 0:00:10]} 17. b4 {[%emt 0:00:10]} Nb7 {[%emt 0:05:52]} 18. Bd2 {[%emt 0:00:56]} Rac8 {[%emt 0:01:32]} 19. Rc1 {[%emt 0:00:37]} Kh8 {[%emt 0:01:41]} 20. Bg5 {[%emt 0:04:26]} Qe8 {[%emt 0:02:09]} 21. Nh2 {[%emt 0:02:24]} Ng8 {[%emt 0:01:35]} 22. h4 {[%emt 0:02:54]} f6 {[%emt 0:14:24]} 23. Bd2 {[%emt 0:00:20]} Qf7 {[%emt 0:02:10]} 24. h5 {[%emt 0:03:20]} Bh6 {[%emt 0:04:00]} 25. Bxh6 {[%emt 0:14:36]} Nxh6 {[%emt 0:02:11]} 26. hxg6 {[%emt 0:00:04]} hxg6 {[%emt 0:00:36]} 27. Qd2 {[%emt 0:00:10]} Kg7 {[%emt 0:00:55]} 28. Rf1 {[%emt 0:05:39]} Qe7 {[%emt 0:01:27]} 29. Rce1 {[%emt 0:04:03]} Ng4 {[%emt 0:02:42]} 30. Nxg4 {[%emt 0:03:25]} Bxg4 {[%emt 0:00:01]} 31. f3 {[%emt 0:00:01]} Bd7 {[%emt 0:00:31]} 32. f4 {[%emt 0:00:29]} exf4 {[%emt 0:01:43]} 33. Rxf4 {[%emt 0:00:18]} Qe5 {[%emt 0:02:06]} 34. Ref1 {[%emt 0:03:13]} cxb4 {[%emt 0:00:50]} 35. Rh4 {[%emt 0:09:05]} Qg5 {[%emt 0:11:55]} 36. Qf2 {[%emt 0:03:21]} Rxc3 {[%emt 0:00:28]} 37. e5 {[%emt 0:01:18]} Rxg3 {[%emt 0:05:53]} 38. exf6+ {[%emt 0:00:25]} Rxf6 {[%emt 0:01:36]} 39. Qxf6+ {[%emt 0:00:17]} Qxf6 {[%emt 0:00:01]} 40. Rxf6 {[%emt 0:00:00]} Kxf6 {[%emt 0:00:00]} 41. Rh7 {[%emt 0:00:00]} Nc5 {[%emt 0:00:00]} 0-1

[Event "Satka Autumn 2019"]
[Site "Satka"]
[Date "2019.09.24"]
[Round "6.12"]
[White "Kulkova, Dina"]
[Black "Eidelson, Rakhil"]
[Result "0-1"]
[ECO "A15"]
[WhiteElo "1424"]
[BlackElo "2064"]
[Annotator "NA"]
[PlyCount "78"]
[EventDate "2019.09.19"]
[EventType "swiss"]
[EventCountry "RUS"]
[SourceTitle "playchess.com"]
[Source "ChessBase"]
[SourceQuality "1"]
[TimeControl "5400+30"]

1. c4 {[%emt 0:00:00]} Nf6 {[%emt 0:00:00]} 2. g3 {[%emt 0:00:00]} g6 {[%emt 0:00:00]} 3. Bg2 {[%emt 0:00:00]} Bg7 {[%emt 0:00:00]} 4. Nc3 {[%emt 0:00:06]} d6 {[%emt 0:00:00]} 5. e3 {[%emt 0:00:12]} O-O {[%emt 0:00:02]} 6. Nge2 {[%emt 0:00:07]} e5 {[%emt 0:00:15]} 7. O-O {[%emt 0:00:16]} Re8 {[%emt 0:00:43]} 8. d3 {[%emt 0:00:10]} c6 {[%emt 0:00:46]} 9. Rb1 {[%emt 0:00:26]} Be6 {[%emt 0:01:44]} 10. b3 {[%emt 0:00:26]} Qd7 {[%emt 0:01:40]} 11. Bb2 {[%emt 0:00:42]} Bh3 {[%emt 0:00:57]} 12. Qd2 {[%emt 0:00:52]} Bxg2 {[%emt 0:00:40]} 13. Kxg2 {[%emt 0:00:07]} Na6 {[%emt 0:01:02]} 14. h3 {[%emt 0:01:32]} Rad8 {[%emt 0:02:21]} 15. d4 {[%emt 0:05:30]} e4 {[%emt 0:02:47]} 16. d5 {[%emt 0:02:42]} Nc5 {[%emt 0:01:33]} 17. Ba1 {[%emt 0:00:48]} Qe7 {[%emt 0:05:06]} 18. Nf4 {[%emt 0:01:08]} Ncd7 {[%emt 0:05:59]} 19. dxc6 {[%emt 0:02:52]} bxc6 {[%emt 0:00:03]} 20. Rfd1 {[%emt 0:01:05]} Ne5 {[%emt 0:11:32]} 21. Qc2 {[%emt 0:00:43]} Nf3 {[%emt 0:14:03]} 22. Nxe4 {[%emt 0:03:59]} Nh4+ {[%emt 0:00:16]} 23. gxh4 {[%emt 0:00:10]} Nxe4 {[%emt 0:00:08]} 24. Bxg7 {[%emt 0:00:26]} Kxg7 {[%emt 0:00:59]} 25. h5 {[%emt 0:01:06]} Qe5 {[%emt 0:05:28]} 26. Rg1 {[%emt 0:02:44]} Qg5+ {[%emt 0:06:58]} 27. Kf1 {[%emt 0:05:36]} Qf5 {[%emt 0:01:14]} 28. Qb2+ {[%emt 0:00:23]} Qe5 {[%emt 0:04:54]} 29. Nd3 {[%emt 0:01:13]} Qxb2 {[%emt 0:00:11]} 30. Rxb2 {[%emt 0:00:06]} d5 {[%emt 0:01:44]} 31. hxg6 {[%emt 0:00:41]} dxc4 {[%emt 0:01:14]} 32. gxf7+ {[%emt 0:01:00]} Kxf7 {[%emt 0:00:14]} 33. Nf4 {[%emt 0:01:13]} c3 {[%emt 0:00:12]} 34. Rc2 {[%emt 0:00:38]} Rd1+ {[%emt 0:00:15]} 35. Kg2 {[%emt 0:00:27]} Rg8+ {[%emt 0:00:27]} 36. Kf3 {[%emt 0:00:15]} Nd2+ {[%emt 0:04:47]} 37. Ke2 {[%emt 0:02:04]} Rgxg1 {[%emt 0:00:58]} 38. Nd3 {[%emt 0:00:53]} Ne4 {[%emt 0:00:36]} 39. b4 {[%emt 0:02:17]} Rd2+ {[%emt 0:00:38]} 0-1

[Event "Satka Autumn 2019"]
[Site "Satka"]
[Date "2019.09.25"]
[Round "7.1"]
[White "Mironenko, Galina"]
[Black "Schepetkova, Margarita"]
[Result "1/2-1/2"]
[ECO "B19"]
[WhiteElo "1982"]
[BlackElo "2194"]
[Annotator "NA"]
[PlyCount "125"]
[EventDate "2019.09.19"]
[EventType "swiss"]
[EventCountry "RUS"]
[SourceTitle "playchess.com"]
[Source "ChessBase"]
[SourceQuality "1"]
[TimeControl "5400+30"]

1. e4 {[%emt 0:00:00]} c6 {[%emt 0:00:00]} 2. d4 {[%emt 0:00:00]} d5 {[%emt 0:00:00]} 3. Nc3 {[%emt 0:00:00]} dxe4 {[%emt 0:00:00]} 4. Nxe4 {[%emt 0:00:00]} Bf5 {[%emt 0:00:00]} 5. Ng3 {[%emt 0:00:00]} Bg6 {[%emt 0:00:00]} 6. h4 {[%emt 0:00:00]} h6 {[%emt 0:00:00]} 7. Nf3 {[%emt 0:00:00]} Nd7 {[%emt 0:00:00]} 8. h5 {[%emt 0:00:05]} Bh7 {[%emt 0:00:04]} 9. Bd3 {[%emt 0:00:05]} Bxd3 {[%emt 0:00:04]} 10. Qxd3 {[%emt 0:00:05]} e6 {[%emt 0:00:05]} 11. Bd2 {[%emt 0:00:04]} Ngf6 {[%emt 0:00:09]} 12. O-O-O {[%emt 0:00:08]} Qc7 {[%emt 0:00:45]} 13. Ne4 {[%emt 0:00:06]} O-O-O {[%emt 0:03:35]} 14. g3 {[%emt 0:00:07]} Be7 {[%emt 0:05:37]} 15. Kb1 {[%emt 0:03:40]} Nxe4 {[%emt 0:04:52]} 16. Qxe4 {[%emt 0:00:05]} c5 {[%emt 0:03:46]} 17. Bf4 {[%emt 0:14:22]} Bd6 {[%emt 0:04:04]} 18. Bxd6 {[%emt 0:04:30]} Qxd6 {[%emt 0:00:03]} 19. Qe2 {[%emt 0:02:03]} Qb6 {[%emt 0:12:32]} 20. Rh4 {[%emt 0:04:12]} cxd4 {[%emt 0:06:59]} 21. Rhxd4 {[%emt 0:04:09]} Nc5 {[%emt 0:00:23]} 22. Ne5 {[%emt 0:06:58]} Rxd4 {[%emt 0:09:35]} 23. Rxd4 {[%emt 0:00:09]} f6 {[%emt 0:17:15]} 24. Rc4 {[%emt 0:10:12]} Kb8 {[%emt 0:01:34]} 25. Rxc5 {[%emt 0:01:30]} Rd8 {[%emt 0:01:00]} 26. Nd3 {[%emt 0:15:55]} Rxd3 {[%emt 0:00:07]} 27. cxd3 {[%emt 0:02:55]} Qxc5 {[%emt 0:00:04]} 28. Qxe6 {[%emt 0:00:31]} Qxh5 {[%emt 0:03:23]} 29. Qg8+ {[%emt 0:01:43]} Kc7 {[%emt 0:00:01]} 30. Qxg7+ {[%emt 0:00:12]} Kc8 {[%emt 0:00:02]} 31. g4 {[%emt 0:02:13]} Qh1+ {[%emt 0:00:49]} 32. Kc2 {[%emt 0:00:05]} Qf3 {[%emt 0:00:54]} 33. Qxh6 {[%emt 0:04:19]} Qxf2+ {[%emt 0:00:20]} 34. Qd2 {[%emt 0:00:33]} Qf3 {[%emt 0:00:53]} 35. Qc3+ {[%emt 0:00:53]} Kb8 {[%emt 0:00:25]} 36. Qd4 {[%emt 0:02:28]} a6 {[%emt 0:00:06]} 37. Kb3 {[%emt 0:03:21]} Qd1+ {[%emt 0:01:44]} 38. Ka3 {[%emt 0:00:45]} Ka8 {[%emt 0:02:26]} 39. Qd8+ {[%emt 0:02:55]} Ka7 {[%emt 0:00:03]} 40. Qd4+ {[%emt 0:00:00]} Ka8 {[%emt 0:00:00]} 41. Qc4 {[%emt 0:00:00]} Qf3 {[%emt 0:00:00]} 42. Kb4 {[%emt 0:00:00]} Qe2 {[%emt 0:00:00]} 43. Qc8+ {[%emt 0:00:00]} Ka7 {[%emt 0:00:00]} 44. Qc5+ {[%emt 0:00:00]} Ka8 {[%emt 0:00:00]} 45. Qd4 {[%emt 0:00:00]} Qe1+ {[%emt 0:00:00]} 46. Kb3 {[%emt 0:00:00]} Qd1+ {[%emt 0:00:00]} 47. Ka3 {[%emt 0:00:00]} Qe2 {[%emt 0:00:00]} 48. Qd8+ {[%emt 0:00:00]} Ka7 {[%emt 0:00:00]} 49. Qxf6 {[%emt 0:00:00]} Qxg4 {[%emt 0:00:00]} 50. Qf2+ {[%emt 0:00:00]} Ka8 {[%emt 0:00:00]} 51. Qf8+ {[%emt 0:00:00]} Ka7 {[%emt 0:00:00]} 52. Qc5+ {[%emt 0:00:00]} Ka8 {[%emt 0:00:00]} 53. d4 {[%emt 0:00:00]} Qg3+ {[%emt 0:00:00]} 54. Qc3 {[%emt 0:00:00]} Qd6+ {[%emt 0:00:00]} 55. b4 {[%emt 0:00:00]} Qe6 {[%emt 0:00:00]} 56. Kb2 {[%emt 0:00:00]} Qe2+ {[%emt 0:00:00]} 57. Qc2 {[%emt 0:00:19]} Qe6 {[%emt 0:00:00]} 58. Qd3 {[%emt 0:02:02]} Qd5 {[%emt 0:00:00]} 59. Qc3 {[%emt 0:00:37]} Qe6 {[%emt 0:00:00]} 60. Qf3 {[%emt 0:00:21]} Qd6 {[%emt 0:00:00]} 61. Qc3 {[%emt 0:04:31]} Qe6 {[%emt 0:00:00]} 62. Qd3 {[%emt 0:01:08]} Qd5 {[%emt 0:00:00]} 63. Qc3 {[%emt 0:00:24]} 1/2-1/2

[Event "Satka Autumn 2019"]
[Site "Satka"]
[Date "2019.09.25"]
[Round "7.3"]
[White "Borisova, Ekaterina"]
[Black "Charochkina, Daria"]
[Result "1-0"]
[ECO "E62"]
[WhiteElo "2307"]
[BlackElo "2360"]
[Annotator "NA"]
[PlyCount "155"]
[EventDate "2019.09.19"]
[EventType "swiss"]
[EventCountry "RUS"]
[SourceTitle "playchess.com"]
[Source "ChessBase"]
[SourceQuality "1"]
[TimeControl "5400+30"]

1. d4 {[%emt 0:00:00]} d6 {[%emt 0:00:00]} 2. Nf3 {[%emt 0:00:00]} Nf6 {[%emt 0:00:00]} 3. c4 {[%emt 0:00:00]} g6 {[%emt 0:00:00]} 4. Nc3 {[%emt 0:00:00]} Bf5 {[%emt 0:00:00]} 5. g3 {[%emt 0:00:10]} Bg7 {[%emt 0:00:12]} 6. Bg2 {[%emt 0:00:12]} O-O {[%emt 0:05:26]} 7. O-O {[%emt 0:00:06]} Nc6 {[%emt 0:00:09]} 8. d5 {[%emt 0:00:13]} Na5 {[%emt 0:00:05]} 9. Nd2 {[%emt 0:00:04]} c5 {[%emt 0:00:25]} 10. e4 {[%emt 0:00:08]} Bg4 {[%emt 0:00:25]} 11. Qc2 {[%emt 0:00:56]} a6 {[%emt 0:01:41]} 12. Rb1 {[%emt 0:00:34]} Rc8 {[%emt 0:04:08]} 13. f3 {[%emt 0:05:14]} Bd7 {[%emt 0:00:25]} 14. b3 {[%emt 0:00:09]} b5 {[%emt 0:14:42]} 15. Bb2 {[%emt 0:00:06]} e6 {[%emt 0:04:04]} 16. dxe6 {[%emt 0:09:15]} Bxe6 {[%emt 0:02:36]} 17. Ne2 {[%emt 0:09:29]} Nc6 {[%emt 0:03:26]} 18. a3 {[%emt 0:00:42]} Qb6 {[%emt 0:05:43]} 19. f4 {[%emt 0:10:14]} Bg4 {[%emt 0:11:17]} 20. Bf3 {[%emt 0:01:36]} Rfe8 {[%emt 0:09:04]} 21. Bxg4 {[%emt 0:11:57]} Nxg4 {[%emt 0:00:05]} 22. Bxg7 {[%emt 0:00:29]} Kxg7 {[%emt 0:00:05]} 23. h3 Nf6 {[%emt 0:03:08]} 24. g4 {[%emt 0:07:47]} h6 {[%emt 0:08:10]} 25. Rf2 {[%emt 0:05:07]} Nd4 {[%emt 0:03:10]} 26. Qd3 {[%emt 0:01:13]} Re7 {[%emt 0:03:51]} 27. Nxd4 {[%emt 0:18:01]} cxd4 {[%emt 0:00:07]} 28. Re2 {[%emt 0:00:29]} Qc5 {[%emt 0:02:04]} 29. Rbe1 {[%emt 0:01:32]} Nd7 {[%emt 0:02:55]} 30. Kg2 {[%emt 0:03:49]} Nb6 {[%emt 0:01:20]} 31. Rc1 {[%emt 0:05:46]} d5 {[%emt 0:00:13]} 32. exd5 {[%emt 0:03:54]} Nxd5 {[%emt 0:00:36]} 33. Re4 {[%emt 0:00:20]} Rxe4 {[%emt 0:07:40]} 34. Qxe4 {[%emt 0:00:09]} Nf6 {[%emt 0:00:38]} 35. Qe5 {[%emt 0:02:59]} Qc6+ {[%emt 0:00:05]} 36. Kf2 {[%emt 0:00:15]} Re8 {[%emt 0:06:02]} 37. Qxd4 {[%emt 0:00:05]} Qc7 {[%emt 0:00:02]} 38. Re1 {[%emt 0:02:00]} Rd8 {[%emt 0:00:49]} 39. Qe3 {[%emt 0:00:23]} g5 {[%emt 0:00:56]} 40. Nf3 {[%emt 0:00:00]} gxf4 {[%emt 0:00:00]} 41. Qe5 {[%emt 0:00:00]} Qxe5 {[%emt 0:00:00]} 42. Nxe5 {[%emt 0:00:00]} bxc4 {[%emt 0:00:00]} 43. bxc4 {[%emt 0:00:00]} Rd2+ {[%emt 0:00:00]} 44. Kf3 {[%emt 0:00:00]} Ra2 {[%emt 0:00:00]} 45. Kxf4 {[%emt 0:00:00]} Rxa3 {[%emt 0:00:00]} 46. Rb1 {[%emt 0:00:00]} Rxh3 {[%emt 0:00:00]} 47. Rb7 {[%emt 0:00:00]} Kg8 {[%emt 0:00:00]} 48. Rxf7 {[%emt 0:00:00]} Nh7 {[%emt 0:00:00]} 49. Ra7 {[%emt 0:00:00]} Rh1 {[%emt 0:00:00]} 50. Rxa6 {[%emt 0:00:00]} Rf1+ {[%emt 0:00:00]} 51. Ke3 {[%emt 0:00:00]} Nf6 {[%emt 0:02:08]} 52. c5 {[%emt 0:00:29]} Re1+ {[%emt 0:01:42]} 53. Kf4 {[%emt 0:00:09]} Nd5+ {[%emt 0:00:17]} 54. Kf5 {[%emt 0:00:19]} Ne7+ {[%emt 0:02:33]} 55. Kf6 {[%emt 0:01:02]} Nd5+ {[%emt 0:00:01]} 56. Kg6 {[%emt 0:08:14]} Ne7+ {[%emt 0:00:24]} 57. Kf6 {[%emt 0:00:05]} Nd5+ {[%emt 0:00:03]} 58. Kf5 {[%emt 0:00:04]} Ne7+ {[%emt 0:00:05]} 59. Ke6 {[%emt 0:01:42]} Ng6 {[%emt 0:00:10]} 60. Ra8+ {[%emt 0:00:13]} Kg7 {[%emt 0:00:33]} 61. Ra7+ {[%emt 0:00:07]} Kg8 {[%emt 0:00:54]} 62. Kf5 {[%emt 0:00:52]} Nxe5 {[%emt 0:03:21]} 63. Re7 {[%emt 0:00:05]} Rc1 {[%emt 0:00:49]} 64. Rxe5 {[%emt 0:00:24]} Kf7 {[%emt 0:00:03]} 65. Ke4 {[%emt 0:01:12]} Kf6 {[%emt 0:02:59]} 66. Rf5+ {[%emt 0:00:06]} Ke6 {[%emt 0:00:04]} 67. Rh5 {[%emt 0:00:05]} Rc4+ {[%emt 0:00:09]} 68. Kf3 {[%emt 0:00:04]} Kf7 {[%emt 0:00:26]} 69. Kg3 {[%emt 0:00:11]} Rc1 {[%emt 0:00:28]} 70. Kf3 {[%emt 0:01:19]} Rc4 {[%emt 0:00:27]} 71. Rd5 {[%emt 0:00:17]} Kg6 {[%emt 0:01:06]} 72. Kg3 {[%emt 0:00:48]} Rc1 {[%emt 0:00:40]} 73. Kf4 {[%emt 0:00:41]} Rc4+ {[%emt 0:00:34]} 74. Ke5 {[%emt 0:00:15]} Rxg4 {[%emt 0:00:41]} 75. c6 {[%emt 0:00:06]} Rc4 {[%emt 0:00:07]} 76. Kd6 {[%emt 0:00:03]} h5 {[%emt 0:00:24]} 77. c7 {[%emt 0:00:04]} h4 {[%emt 0:01:06]} 78. Rc5 {[%emt 0:00:27]} 1-0

[Event "Satka Autumn 2019"]
[Site "Satka"]
[Date "2019.09.25"]
[Round "7.4"]
[White "Nosacheva, Mariya"]
[Black "Dubnikova, Anastasia"]
[Result "1/2-1/2"]
[ECO "C54"]
[WhiteElo "2193"]
[BlackElo "2056"]
[Annotator "NA"]
[PlyCount "85"]
[EventDate "2019.09.19"]
[EventType "swiss"]
[EventCountry "RUS"]
[SourceTitle "playchess.com"]
[Source "ChessBase"]
[SourceQuality "1"]
[TimeControl "5400+30"]

1. e4 {[%emt 0:00:00]} e5 {[%emt 0:00:00]} 2. Nf3 {[%emt 0:00:00]} Nc6 {[%emt 0:00:00]} 3. Bc4 {[%emt 0:00:06]} Bc5 {[%emt 0:01:07]} 4. c3 {[%emt 0:01:49]} Nf6 {[%emt 0:00:09]} 5. d4 {[%emt 0:08:06]} exd4 {[%emt 0:00:22]} 6. cxd4 {[%emt 0:00:05]} Bb4+ {[%emt 0:00:05]} 7. Bd2 {[%emt 0:02:01]} Bxd2+ {[%emt 0:06:43]} 8. Nbxd2 {[%emt 0:00:08]} d5 {[%emt 0:00:22]} 9. exd5 {[%emt 0:00:29]} Nxd5 {[%emt 0:00:23]} 10. Qb3 {[%emt 0:01:39]} Nce7 {[%emt 0:12:26]} 11. O-O {[%emt 0:00:32]} O-O {[%emt 0:00:08]} 12. Rfe1 {[%emt 0:05:17]} a5 {[%emt 0:05:22]} 13. Ne5 {[%emt 0:09:53]} a4 {[%emt 0:20:12]} 14. Qf3 {[%emt 0:00:33]} c6 {[%emt 0:04:12]} 15. Qh5 {[%emt 0:15:09]} Be6 {[%emt 0:05:56]} 16. Ne4 {[%emt 0:08:34]} Nf4 {[%emt 0:10:08]} 17. Qf3 {[%emt 0:00:26]} Bxc4 {[%emt 0:00:56]} 18. Nxc4 {[%emt 0:00:10]} Ne6 {[%emt 0:01:31]} 19. Rad1 {[%emt 0:01:02]} Nd5 {[%emt 0:05:17]} 20. Nc5 {[%emt 0:02:51]} Ng5 {[%emt 0:03:35]} 21. Qg3 {[%emt 0:01:33]} b6 {[%emt 0:00:30]} 22. h4 {[%emt 0:00:43]} bxc5 {[%emt 0:00:46]} 23. hxg5 {[%emt 0:00:18]} cxd4 {[%emt 0:00:38]} 24. Rxd4 {[%emt 0:00:34]} Re8 {[%emt 0:02:24]} 25. Red1 {[%emt 0:02:30]} Qe7 {[%emt 0:00:53]} 26. Nd6 {[%emt 0:14:45]} Red8 {[%emt 0:00:06]} 27. Nf5 {[%emt 0:00:25]} Qe6 {[%emt 0:04:33]} 28. Ne3 {[%emt 0:00:18]} Rd7 {[%emt 0:02:25]} 29. Rxa4 {[%emt 0:01:10]} Re8 {[%emt 0:01:44]} 30. Rad4 {[%emt 0:09:22]} Nxe3 {[%emt 0:00:22]} 31. Qxe3 {[%emt 0:00:05]} Qxe3 {[%emt 0:00:38]} 32. fxe3 {[%emt 0:00:13]} Rde7 {[%emt 0:00:25]} 33. R1d3 {[%emt 0:00:15]} Kf8 {[%emt 0:00:15]} 34. Kf2 {[%emt 0:01:18]} Re5 {[%emt 0:00:32]} 35. Rc3 {[%emt 0:05:43]} c5 {[%emt 0:00:35]} 36. Rh4 {[%emt 0:01:19]} Rf5+ {[%emt 0:00:15]} 37. Kg1 {[%emt 0:00:11]} Rd8 {[%emt 0:01:41]} 38. Rc2 {[%emt 0:01:08]} Rd1+ {[%emt 0:03:52]} 39. Kh2 {[%emt 0:00:04]} Re1 {[%emt 0:00:36]} 40. Re4 {[%emt 0:00:00]} Rxg5 {[%emt 0:00:00]} 41. b4 {[%emt 0:00:00]} f5 {[%emt 0:00:00]} 42. Rxc5 {[%emt 0:00:00]} Re2 {[%emt 0:00:00]} 43. Kh3 1/2-1/2

[Event "Satka Autumn 2019"]
[Site "Satka"]
[Date "2019.09.25"]
[Round "7.5"]
[White "Eidelson, Rakhil"]
[Black "Semenova, Elena"]
[Result "1/2-1/2"]
[ECO "C50"]
[WhiteElo "2064"]
[BlackElo "2303"]
[Annotator "NA"]
[PlyCount "95"]
[EventDate "2019.09.19"]
[EventType "swiss"]
[EventCountry "RUS"]
[SourceTitle "playchess.com"]
[Source "ChessBase"]
[SourceQuality "1"]
[TimeControl "5400+30"]

1. e4 {[%emt 0:00:00]} e5 {[%emt 0:00:00]} 2. Nf3 {[%emt 0:00:00]} Nc6 {[%emt 0:00:00]} 3. Bc4 {[%emt 0:00:00]} Nf6 {[%emt 0:00:02]} 4. d3 {[%emt 0:00:00]} Bc5 {[%emt 0:00:16]} 5. O-O {[%emt 0:00:00]} O-O {[%emt 0:00:17]} 6. c3 {[%emt 0:00:01]} d5 {[%emt 0:00:33]} 7. exd5 {[%emt 0:00:13]} Nxd5 {[%emt 0:00:06]} 8. b4 {[%emt 0:09:37]} Be7 {[%emt 0:00:40]} 9. b5 {[%emt 0:01:50]} Na5 {[%emt 0:00:33]} 10. Nxe5 {[%emt 0:02:52]} Nxc4 {[%emt 0:02:44]} 11. Nxc4 {[%emt 0:04:46]} a6 {[%emt 0:01:27]} 12. b6 {[%emt 0:01:39]} Nxb6 {[%emt 0:09:27]} 13. Nxb6 {[%emt 0:00:23]} cxb6 {[%emt 0:00:02]} 14. a4 {[%emt 0:02:17]} Bf5 {[%emt 0:03:53]} 15. d4 {[%emt 0:00:05]} Rc8 {[%emt 0:04:46]} 16. Bb2 {[%emt 0:01:43]} Rc6 {[%emt 0:08:59]} 17. Nd2 {[%emt 0:00:25]} Rg6 {[%emt 0:04:26]} 18. Kh1 {[%emt 0:03:09]} Bd6 {[%emt 0:04:06]} 19. g3 {[%emt 0:05:07]} Bg4 {[%emt 0:13:43]} 20. Qc2 {[%emt 0:01:17]} Bh3 {[%emt 0:07:39]} 21. Rfe1 {[%emt 0:01:04]} Qf6 {[%emt 0:02:12]} 22. Kg1 {[%emt 0:07:07]} Bf4 {[%emt 0:06:57]} 23. Nf1 {[%emt 0:07:45]} Bf5 {[%emt 0:04:41]} 24. Qe2 {[%emt 0:02:01]} Qc6 {[%emt 0:08:50]} 25. c4 {[%emt 0:20:49]} Bg4 {[%emt 0:10:32]} 26. Qe4 {[%emt 0:02:49]} Qxe4 {[%emt 0:00:13]} 27. Rxe4 {[%emt 0:00:02]} Bd6 {[%emt 0:00:11]} 28. Ree1 {[%emt 0:05:21]} Rc8 {[%emt 0:02:16]} 29. Ne3 {[%emt 0:00:33]} Be6 {[%emt 0:01:53]} 30. Rec1 {[%emt 0:01:16]} f5 {[%emt 0:01:01]} 31. d5 {[%emt 0:11:35]} Bd7 {[%emt 0:00:03]} 32. Bd4 {[%emt 0:00:39]} f4 {[%emt 0:00:43]} 33. Ng2 {[%emt 0:00:32]} fxg3 {[%emt 0:00:32]} 34. hxg3 {[%emt 0:00:14]} Rg4 {[%emt 0:00:34]} 35. Bxb6 {[%emt 0:00:30]} Rgxc4 {[%emt 0:00:55]} 36. Rxc4 {[%emt 0:00:07]} Rxc4 {[%emt 0:00:01]} 37. a5 {[%emt 0:00:32]} Kf7 {[%emt 0:01:30]} 38. Ne3 {[%emt 0:00:20]} Rc3 {[%emt 0:00:36]} 39. Rb1 {[%emt 0:01:11]} g6 {[%emt 0:01:05]} 40. Bd4 {[%emt 0:00:00]} Rc7 {[%emt 0:00:00]} 41. Rb6 {[%emt 0:00:00]} Ke7 {[%emt 0:00:00]} 42. Kg2 {[%emt 0:00:00]} Bc8 {[%emt 0:00:00]} 43. Kf3 {[%emt 0:00:00]} Rc1 {[%emt 0:00:00]} 44. Bb2 {[%emt 0:00:00]} Rc7 {[%emt 0:00:00]} 45. Bd4 {[%emt 0:00:00]} Rc1 {[%emt 0:01:02]} 46. Bb2 {[%emt 0:00:00]} Rc7 {[%emt 0:00:17]} 47. Bd4 {[%emt 0:00:00]} Rc1 {[%emt 0:00:43]} 48. Ke4 1/2-1/2